fUSD/lending_fUSD_20251029
["ID","MTS","AMOUNT","RATE_DAILY","PERIOD"]
[392632096,1761765039108,-150.0,0.00014387,2]
[392632098,1761765039117,-150.0,0.00014424,2]
[392632100,1761765039127,-150.0,0.00014487,2]
[392632102,1761765039137,-785.91420296,0.00014499,2]
[392632104,1761765039147,-300.0,0.00014501,2]
[392632106,1761765039157,-1116.87,0.0001453,2]
[392632108,1761765039168,-222.58167853,0.00014587,2]
[392632110,1761765039177,-150.0,0.00014612,2]
[392632113,1761765039189,-6634.8217,0.0001464,2]
[392632115,1761765039200,-221.53471527,0.00014642,2]
[392632116,1761765039210,-150.0,0.00014687,2]
[392632118,1761765039221,-1000.0,0.000147,2]
[392632120,1761765039230,-234.0503,0.000147,2]
[392632122,1761765039240,-279.4134,0.000147,2]
[392632124,1761765039250,-1000.0,0.000147,2]
[392632126,1761765039259,-556.599,0.000147,2]
[392632128,1761765039269,-2500.0,0.000147,2]
[392632130,1761765039278,-276.54154849,0.000147,2]
[392632131,1761765039288,-172.41133011,0.00014712,2]
[392632132,1761765039298,-1000.0,0.00014723,2]
[392632134,1761765039309,-1044.13487852,0.00014726,2]
[392632136,1761765039318,-151.0,0.00014738,2]
[392632138,1761765039331,-558.0,0.0001474,2]
[392632140,1761765039341,-6628.0,0.0001474,2]
[392632142,1761765039351,-6465.0,0.0001474,2]
[392632144,1761765039361,-3492.0,0.0001474,2]
[392632146,1761765039372,-892.67338722,0.00014743,2]
[392632148,1761765039382,-172.4113301,0.00014759,2]
[392632150,1761765039391,-151.0,0.0001476,2]
[392632152,1761765039401,-3131.85474086,0.00014765,2]
[392632154,1761765039410,-157.24,0.0001477,2]
[392632156,1761765039420,-624.95307713,0.00014775,2]
[392632158,1761765039429,-18929.77767637,0.0001478,2]
[392632160,1761765039439,-3131.85474086,0.0001478,2]
[392632162,1761765039449,-151.0,0.00014785,2]
[392632165,1761765039459,-3131.85474086,0.00014795,2]
[392632170,1761765039479,-150.0,0.00014799,2]
[392632172,1761765039491,-500.0,0.00014799,2]
[392632174,1761765039502,-500.0,0.00014799,2]
[392632176,1761765039512,-500.0,0.00014799,2]
[392632178,1761765039522,-500.0,0.00014799,2]
[392632180,1761765039531,-386.36733999,0.00014799,2]
[392632182,1761765039541,-423.51791763,0.00014799,2]
[392632184,1761765039552,-503.07491612,0.00014799,2]
[392632188,1761765039563,-509.21739274,0.00014799,2]
[392632191,1761765039573,-500.0,0.00014799,2]
[392632193,1761765039588,-500.0,0.00014799,2]
[392632195,1761765039598,-500.0,0.00014799,2]
[392632197,1761765039607,-500.0,0.00014799,2]
[392632199,1761765039618,-500.0,0.00014799,2]
[392632201,1761765039627,-500.0,0.00014799,2]
[392632203,1761765039638,-500.0,0.00014799,2]
[392632205,1761765039648,-320.58430048,0.00014799,2]
[392632208,1761765039658,-500.0,0.00014799,2]
[392632210,1761765039668,-500.0,0.00014799,2]
[392632212,1761765039678,-526.52355523,0.00014799,2]
[392632214,1761765039688,-34851.73958751,0.000148,2]
[392632372,1761765041312,-8482.26649136,0.000148,2]
[392632383,1761765041405,-718.81267108,0.000148,2]
[392632385,1761765041416,-1021.54214564,0.000148,2]
[392632391,1761765041463,-2636.58216151,0.000148,2]
[392632393,1761765041475,-486.71999997,0.000148,2]
[392632395,1761765041486,-339.98268535,0.000148,2]
[392632398,1761765041496,-11090.43232308,0.000148,2]
[392632402,1761765041531,-404.95500358,0.000148,2]
[392632587,1761765043559,-996.59902491,0.000148,2]
[392632588,1761765043572,-132167.47890601,0.000148,2]
[392632589,1761765043583,-1605.0,0.000148,2]
[392632590,1761765043593,-1116.87,0.00014804,2]
[392632591,1761765043603,-151.0,0.00014805,2]
[392632592,1761765043612,-172.4113301,0.00014806,2]
[392632593,1761765043622,-3131.85474086,0.0001481,2]
[392632594,1761765043631,-3131.85474086,0.00014825,2]
[392632595,1761765043640,-500.0,0.0001483,2]
[392632596,1761765043650,-200.0,0.0001483,2]
[392632597,1761765043660,-1000.0,0.00014834,2]
[392632598,1761765043670,-3131.85474086,0.0001484,2]
[392632599,1761765043679,-2035.336,0.00014845,2]
[392632600,1761765043688,-167.01858659,0.00014847,2]
[392632601,1761765043697,-2764.79075,0.0001485,2]
[392632603,1761765043708,-1000.0,0.00014852,2]
[392632605,1761765043718,-172.4113301,0.00014853,2]
[392632607,1761765043727,-3131.85474086,0.00014855,2]
[392632609,1761765043737,-1000.0,0.00014865,2]
[392632611,1761765043746,-3131.85474086,0.0001487,2]
[392632613,1761765043755,-3131.85474086,0.00014885,2]
[392632615,1761765043765,-150.0,0.00014897,2]
[392632617,1761765043775,-201.68175415,0.00014897,2]
[392632619,1761765043784,-150.0,0.00014897,2]
[392632621,1761765043794,-150.0,0.00014897,2]
[392632622,1761765043802,-500.0,0.00014897,2]
[392632624,1761765043812,-150.0,0.00014897,2]
[392632627,1761765043821,-150.0,0.00014897,2]
[392632628,1761765043832,-204.74236721,0.00014897,2]
[392632631,1761765043842,-150.0,0.00014897,2]
[392632633,1761765043852,-150.0,0.00014897,2]
[392632635,1761765043870,-150.0,0.00014897,2]
[392632637,1761765043880,-200.0,0.00014897,2]
[392632638,1761765043889,-500.0,0.00014897,2]
[392632640,1761765043899,-500.0,0.00014897,2]
[392632643,1761765043912,-150.0,0.00014897,2]
[392632644,1761765043926,-150.0,0.00014897,2]
[392632646,1761765043935,-150.0,0.00014897,2]
[392632648,1761765043946,-150.0,0.00014897,2]
[392632650,1761765043957,-500.0,0.00014897,2]
[392632653,1761765043966,-500.0,0.00014899,2]
[392632654,1761765043976,-500.0,0.00014899,2]
[392632656,1761765043985,-500.0,0.00014899,2]
[392632659,1761765043998,-500.0,0.00014899,2]
[392632661,1761765044008,-500.0,0.00014899,2]
[392632663,1761765044018,-500.0,0.00014899,2]
[392632665,1761765044027,-165.6269197,0.00014899,2]
[392632667,1761765044036,-165.6269197,0.000149,2]
[392632669,1761765044046,-4411.24363688,0.000149,2]
[392632671,1761765044056,-480.9727,0.000149,2]
[392632673,1761765044066,-172.4113301,0.000149,2]
[392632675,1761765044075,-165.6269197,0.000149,2]
[392632677,1761765044088,-3131.85474086,0.000149,2]
[392632679,1761765044097,-195.4281316,0.000149,2]
[392632681,1761765044106,-190.42190917,0.000149,2]
[392632682,1761765044115,-856.61772314,0.000149,2]
[392632684,1761765044125,-280.34137118,0.000149,2]
[392632686,1761765044134,-500.0,0.00014954,2]
[392632688,1761765044143,-500.0,0.00014954,2]
[392632690,1761765044153,-587.31,0.00014954,2]
[392632692,1761765044163,-500.0,0.00014954,2]
[392632694,1761765044172,-529.17913435,0.00014973,2]
[392632696,1761765044181,-500.0,0.00014973,2]
[392632698,1761765044191,-500.0,0.00014973,2]
[392632700,1761765044201,-500.0,0.00014973,2]
[392632702,1761765044210,-171.43322433,0.00014973,2]
[392632704,1761765044220,-503.91202727,0.00014973,2]
[392632706,1761765044229,-500.0,0.00014973,2]
[392632708,1761765044238,-217.68277019,0.00014973,2]
[392632710,1761765044248,-503.13226371,0.00014973,2]
[392632712,1761765044257,-500.0,0.00014973,2]
[392632714,1761765044267,-500.0,0.00014973,2]
[392632717,1761765044277,-500.0,0.00014973,2]
[392632719,1761765044286,-502.67293591,0.00014973,2]
[392632721,1761765044295,-508.32529215,0.00014973,2]
[392632723,1761765044306,-500.0,0.00014973,2]
[392632725,1761765044315,-500.0,0.00014973,2]
[392632727,1761765044324,-500.0,0.00014973,2]
[392632729,1761765044335,-500.0,0.00014973,2]
[392632731,1761765044345,-500.0,0.00014973,2]
[392632733,1761765044355,-500.0,0.00014973,2]
[392632735,1761765044365,-500.0,0.00014973,2]
[392632737,1761765044375,-500.0,0.00014973,2]
[392632739,1761765044385,-500.0,0.00014973,2]
[392632741,1761765044395,-500.0,0.00014973,2]
[392632743,1761765044405,-453.31092803,0.00014973,2]
[392632745,1761765044414,-500.0,0.00014973,2]
[392632747,1761765044424,-2764.79075,0.0001498,2]
[392632749,1761765044434,-150.0,0.00014986,2]
[392632751,1761765044443,-279.8478322,0.00014986,2]
[392632753,1761765044452,-150.0,0.00014986,2]
[392632755,1761765044461,-150.0,0.00014986,2]
[392632757,1761765044471,-155.80232479,0.00014986,2]
[392632759,1761765044480,-173.4848323,0.00014986,2]
[392632761,1761765044491,-150.0,0.00014986,2]
[392632763,1761765044501,-150.0,0.00014986,2]
[392632765,1761765044511,-710.63,0.00014988,2]
[392632767,1761765044520,-262.43665312,0.0001499,2]
[392632769,1761765044530,-262.43665312,0.0001499,2]
[392632771,1761765044539,-262.43665312,0.0001499,2]
[392632773,1761765044549,-249.80884496,0.00014999,2]
[392632775,1761765044560,-500.0,0.00014999,2]
[392632778,1761765044570,-560.87696769,0.00014999,2]
[392632780,1761765044580,-500.0,0.00014999,2]
[392632782,1761765044590,-500.0,0.00014999,2]
[392632784,1761765044599,-500.0,0.00014999,2]
[392632786,1761765044610,-500.0,0.00014999,2]
[392632788,1761765044619,-500.0,0.00014999,2]
[392632790,1761765044628,-500.0,0.00014999,2]
[392632792,1761765044638,-244.82,0.00014999,2]
[392632794,1761765044648,-500.0,0.00014999,2]
[392632796,1761765044658,-500.0,0.00014999,2]
[392632798,1761765044668,-500.0,0.00014999,2]
[392632800,1761765044677,-500.0,0.00014999,2]
[392632802,1761765044686,-1005.57,0.00014999,2]
[392632804,1761765044696,-500.0,0.00014999,2]
[392632806,1761765044706,-500.0,0.00014999,2]
[392632808,1761765044714,-500.0,0.00014999,2]
[392632810,1761765044725,-500.0,0.00014999,2]
[392632812,1761765044736,-500.0,0.00014999,2]
[392632814,1761765044745,-421.16123923,0.00014999,2]
[392632816,1761765044755,-1089648.92660912,0.00015,2]
[392632819,1761765044768,-105907.83977921,0.00015,2]
[392632964,1761765046104,-266.5388129,0.00014639,2]
[392632966,1761765046114,-61.69867997,0.00014639,2]
[392632970,1761765046138,-438.30132003,0.00014639,2]
[392632972,1761765046147,-500.0,0.00014639,2]
[392632974,1761765046157,-341.07782847,0.00014639,2]
[392632976,1761765046166,-15758.85852704,0.00015,2]
[392632983,1761765046225,-987.68320993,0.00015,2]
[392632985,1761765046237,-5574.786,0.00015,2]
[392632990,1761765046273,-5118.45817306,0.00015,2]
[392632992,1761765046284,-22225.1018099,0.00015,2]
[392634734,1761765140687,500.0,0.00012,2]
[392634735,1761765141185,502.89306301,0.00012,2]
[392634736,1761765163144,500.0,0.00013655,2]
[392634741,1761765247029,150.0,0.00013,10]
[392634742,1761765248903,5281.0,0.000175,3]
[392634748,1761765310200,375.0,0.000175,3]
[392634749,1761765572695,-383.001778,0.00013828,2]
[392634750,1761765572716,-150.0,0.00013848,2]
[392634751,1761765572740,-176.74413976,0.00013898,2]
[392634752,1761765583527,320.07,0.00013839,2]
[392634753,1761765587766,22.18408224,0.00013896,2]
[392634754,1761765607656,356.0,0.000175,3]
[392634759,1761765895124,292.4522194,0.00013633,2]
[392634760,1761765905436,150.0,0.00013672,2]
[392634761,1761765910527,338.0,0.000175,3]
[392634763,1761765935775,429.25,0.00013627,2]
[392634764,1761765962959,4865.63961745,8e-05,2]
[392634770,1761766047628,-341.68,0.00013711,2]
[392634771,1761766047672,-195.0,0.00013733,2]
[392634772,1761766047712,-500.0,0.00013756,2]
[392634773,1761766047750,-1200.0,0.00013772,2]
[392634774,1761766047771,-341.68,0.00013773,2]
[392634775,1761766047848,-195.0,0.00013773,2]
[392634776,1761766047914,-500.0,0.00013773,2]
[392634777,1761766047933,-1200.0,0.00013773,2]
[392634778,1761766047949,-4526.64,0.00013773,2]
[392634780,1761766070596,4021.78638793,0.00013,15]
[392634781,1761766073488,401.45,0.00013699,2]
[392634782,1761766074345,1902.28,0.00013668,2]
[392634804,1761766206717,321.0,0.000175,3]
[392634817,1761766231881,-938.58626969,0.00013773,2]
[392634818,1761766232264,-839.18373031,0.00013773,2]
[392634819,1761766232273,-410.28585585,0.00013902,2]
[392634820,1761766232283,-2751.0,0.00013911,2]
[392634821,1761766232293,-1001.36,0.00013982,2]
[392634822,1761766232302,-300.0,0.00013988,2]
[392634823,1761766232317,-1200.0,0.00013988,2]
[392634824,1761766232326,-150.0,0.00013988,2]
[392634825,1761766232335,-492.36695992,0.0001399,2]
[392634826,1761766232344,-9999.99,0.0001399,2]
[392634827,1761766232355,-266.77913647,0.0001399,2]
[392634828,1761766232396,-561.45,0.0001399,2]
[392634829,1761766232411,-885.27790424,0.0001399,2]
[392634830,1761766232422,-1741.57947707,0.0001399,2]
[392634831,1761766236002,-500.0,0.00013988,2]
[392634832,1761766236012,-500.0,0.00013988,2]
[392634833,1761766236021,-500.0,0.00013988,2]
[392634834,1761766236030,-500.0,0.00013988,2]
[392634835,1761766236039,-500.0,0.00013988,2]
[392634836,1761766236047,-500.0,0.00013988,2]
[392634837,1761766236056,-397.09605547,0.00013988,2]
[392634838,1761766236066,-500.0,0.00013988,2]
[392634839,1761766236075,-500.0,0.00013988,2]
[392634840,1761766236084,-500.0,0.00013988,2]
[392634841,1761766236093,-500.0,0.00013988,2]
[392634842,1761766236102,-500.0,0.00013988,2]
[392634843,1761766236111,-500.0,0.00013988,2]
[392634845,1761766236121,-500.0,0.00013988,2]
[392634847,1761766236130,-500.0,0.00013988,2]
[392634848,1761766236139,-500.0,0.00013988,2]
[392634850,1761766236149,-500.0,0.00013988,2]
[392634852,1761766236158,-500.0,0.00013988,2]
[392634854,1761766236168,-862.10348222,0.0001399,2]
[392634856,1761766236177,-500.0,0.00014,2]
[392634857,1761766236186,-500.0,0.00014,2]
[392634859,1761766236196,-23535.82625573,0.00014,2]
[392634860,1761766236205,-426.73,0.00014002,2]
[392634861,1761766236219,-167.46,0.00014078,2]
[392634862,1761766236228,-342.85,0.00014089,2]
[392634864,1761766236237,-2578.74519043,0.0001439,2]
[392634866,1761766236245,-221.53471527,0.00014585,2]
[392634868,1761766236254,-173.02,0.00014586,2]
[392634870,1761766236263,-1138.791,0.000146,2]
[392634872,1761766236272,-1000.0,0.000146,2]
[392634874,1761766236281,-4377.27567748,0.000146,2]
[392634876,1761766236290,-4377.27567744,0.00014633,2]
[392634878,1761766236300,-892.67338722,0.00014647,2]
[392634880,1761766236313,-4377.27567744,0.00014667,2]
[392634882,1761766236322,-373.72594858,0.0001469,2]
[392634884,1761766236332,-250.27228659,0.0001469,2]
[392634886,1761766236341,-183.62346451,0.0001469,2]
[392634888,1761766236350,-500.0,0.0001469,2]
[392634890,1761766236359,-155.64375089,0.0001469,2]
[392634891,1761766236368,-211.22496216,0.0001469,2]
[392634893,1761766236377,-500.0,0.0001469,2]
[392634895,1761766236386,-736.5,0.00014691,2]
[392634897,1761766236395,-207.4,0.00014691,2]
[392634898,1761766236404,-620.0,0.00014691,2]
[392634899,1761766236413,-151.0,0.00014691,2]
[392634900,1761766236422,-156.587,0.00014691,2]
[392634901,1761766236431,-250.0,0.00014691,2]
[392634902,1761766236440,-162.380719,0.00014691,2]
[392634903,1761766236449,-332.75644885,0.00014691,2]
[392634904,1761766236458,-250.0,0.00014691,2]
[392634905,1761766236469,-168.3888056,0.00014691,2]
[392634906,1761766236478,-250.0,0.00014691,2]
[392634907,1761766236488,-151.0,0.00014691,2]
[392634908,1761766236496,-174.61919141,0.00014691,2]
[392634909,1761766236506,-250.0,0.00014691,2]
[392634910,1761766236515,-151.0,0.00014691,2]
[392634911,1761766236524,-250.0,0.00014691,2]
[392634912,1761766236533,-151.0,0.00014691,2]
[392634913,1761766236542,-181.08010149,0.00014691,2]
[392634914,1761766236551,-226.02260155,0.00014691,2]
[392634915,1761766236560,-187.78006525,0.00014691,2]
[392634916,1761766236570,-250.0,0.00014691,2]
[392634917,1761766236579,-194.72792766,0.00014691,2]
[392634918,1761766236588,-250.0,0.00014691,2]
[392634919,1761766236597,-229.15539407,0.00014691,2]
[392634920,1761766236606,-250.0,0.00014691,2]
[392634921,1761766236766,-151.0,0.00014691,2]
[392634922,1761766236776,-500.0,0.00014691,2]
[392634923,1761766236786,-151.0,0.00014691,2]
[392634924,1761766236794,-151.0,0.00014691,2]
[392634925,1761766236803,-151.0,0.00014691,2]
[392634926,1761766236813,-151.0,0.00014691,2]
[392634927,1761766236822,-151.0,0.00014691,2]
[392634928,1761766236831,-151.0,0.00014691,2]
[392634929,1761766236841,-151.0,0.00014691,2]
[392634930,1761766236850,-151.0,0.00014691,2]
[392634931,1761766236859,-151.0,0.00014691,2]
[392634932,1761766236869,-151.0,0.00014691,2]
[392634933,1761766236879,-151.0,0.00014691,2]
[392634934,1761766236888,-151.0,0.00014691,2]
[392634935,1761766236898,-151.0,0.00014691,2]
[392634936,1761766236907,-151.0,0.00014691,2]
[392634937,1761766236917,-151.0,0.00014691,2]
[392634938,1761766236926,-151.0,0.00014691,2]
[392634939,1761766236935,-151.0,0.00014691,2]
[392634940,1761766236944,-151.0,0.00014691,2]
[392634941,1761766236953,-151.0,0.00014691,2]
[392634942,1761766236962,-151.0,0.00014691,2]
[392634943,1761766236975,-174.82099418,0.00014691,2]
[392634944,1761766236985,-151.0,0.00014691,2]
[392634945,1761766236994,-151.0,0.00014691,2]
[392634946,1761766237003,-151.0,0.00014691,2]
[392634947,1761766237012,-151.0,0.00014691,2]
[392634948,1761766237022,-151.0,0.00014691,2]
[392634949,1761766237032,-151.0,0.00014691,2]
[392634950,1761766237041,-151.0,0.00014691,2]
[392634951,1761766237050,-151.0,0.00014691,2]
[392634952,1761766237059,-151.0,0.00014691,2]
[392634953,1761766237068,-151.0,0.00014697,2]
[392634954,1761766237077,-500.0,0.00014699,2]
[392634955,1761766237087,-1000.0,0.000147,2]
[392634956,1761766237097,-4090.0356,0.000147,2]
[392634957,1761766237108,-193197.111,0.000147,2]
[392634958,1761766237117,-2254.02,0.000147,2]
[392634959,1761766237127,-4377.27567744,0.000147,2]
[392634960,1761766237136,-1000.0,0.000147,2]
[392634961,1761766237146,-180.85840748,0.00014713,2]
[392634962,1761766237156,-4377.27567744,0.00014733,2]
[392634963,1761766237165,-1000.0,0.00014738,2]
[392634964,1761766237174,-4377.27567744,0.00014767,2]
[392634965,1761766237183,-150.0,0.00014798,2]
[392634966,1761766237193,-4377.27567744,0.000148,2]
[392634967,1761766237202,-180.85840746,0.00014807,2]
[392634968,1761766237211,-4377.27567744,0.00014833,2]
[392634969,1761766237222,-150.0,0.00014842,2]
[392634970,1761766237231,-1733.608,0.0001485,2]
[392634971,1761766237240,-2764.79075,0.0001485,2]
[392634972,1761766237249,-2764.79075,0.0001485,2]
[392634973,1761766237259,-192.10823,0.0001485,2]
[392634974,1761766237268,-153.15159408,0.00014855,2]
[392634975,1761766237277,-151.0,0.00014864,2]
[392634976,1761766237287,-4377.27567744,0.00014867,2]
[392634977,1761766237296,-557.40336912,0.00014868,2]
[392634978,1761766237305,-1313.0,0.0001487,2]
[392634979,1761766237315,-1696.348,0.0001487,2]
[392634980,1761766237324,-830.0,0.0001487,2]
[392634981,1761766237333,-1284.264,0.0001487,2]
[392634982,1761766237343,-904.0,0.0001487,2]
[392634983,1761766237352,-55.95796706,0.0001487,2]
[392634992,1761766237773,-1130.04203294,0.0001487,2]
[392634993,1761766237782,-681.899,0.0001487,2]
[392634994,1761766237791,-6628.0,0.0001487,2]
[392634995,1761766237800,-573.0,0.0001487,2]
[392634996,1761766237811,-413.5200949,0.00014877,2]
[392634997,1761766237821,-200.0,0.0001488,2]
[392634998,1761766237830,-150.0,0.00014882,2]
[392634999,1761766237839,-150.0,0.00014887,2]
[392635000,1761766237849,-151.0,0.00014892,2]
[392635001,1761766237859,-150.0,0.00014897,2]
[392635002,1761766237868,-150.0,0.00014897,2]
[392635003,1761766237878,-150.0,0.00014897,2]
[392635004,1761766237888,-150.0,0.00014897,2]
[392635005,1761766237897,-150.59825921,0.00014897,2]
[392635006,1761766237909,-500.0,0.00014897,2]
[392635007,1761766237919,-150.0,0.00014897,2]
[392635008,1761766237929,-150.0,0.00014897,2]
[392635009,1761766237938,-150.000001,0.00014897,2]
[392635010,1761766237947,-259.56043698,0.00014897,2]
[392635011,1761766237957,-500.0,0.00014897,2]
[392635012,1761766237966,-151.0,0.00014899,2]
[392635013,1761766237977,-151.0,0.00014899,2]
[392635015,1761766237988,-151.0,0.000149,2]
[392635017,1761766237997,-217.00952658,0.000149,2]
[392635019,1761766238007,-178.92338346,0.000149,2]
[392635021,1761766238016,-4377.27567744,0.000149,2]
[392635023,1761766238025,-180.85840746,0.000149,2]
[392635025,1761766238036,-977.1406579,0.000149,2]
[392635027,1761766238045,-1000.0,0.00014954,2]
[392635029,1761766238054,-736.5,0.00014965,2]
[392635031,1761766238064,-500.0,0.00014973,2]
[392635033,1761766238073,-500.0,0.00014973,2]
[392635035,1761766238083,-500.0,0.00014973,2]
[392635053,1761766238247,-170.39587519,0.00014973,2]
[392635056,1761766238258,-526.86401143,0.00014973,2]
[392635058,1761766238267,-500.0,0.00014973,2]
[392635060,1761766238277,-500.0,0.00014973,2]
[392635062,1761766238286,-500.0,0.00014973,2]
[392635063,1761766238296,-500.0,0.00014973,2]
[392635064,1761766238308,-500.0,0.00014973,2]
[392635065,1761766238318,-500.0,0.00014973,2]
[392635066,1761766238327,-503.15832314,0.00014973,2]
[392635067,1761766238336,-500.0,0.00014973,2]
[392635068,1761766238345,-500.0,0.00014973,2]
[392635069,1761766238354,-500.0,0.00014973,2]
[392635070,1761766238363,-500.0,0.00014973,2]
[392635071,1761766238372,-500.0,0.00014973,2]
[392635072,1761766238382,-501.05311295,0.00014973,2]
[392635073,1761766238393,-500.0,0.00014973,2]
[392635074,1761766238401,-516.43133353,0.00014973,2]
[392635075,1761766238410,-192.10823,0.0001498,2]
[392635076,1761766238419,-161.83270613,0.00014986,2]
[392635078,1761766238431,-61.68080457,0.00014986,2]
[392635079,1761766238442,-224.84101182,0.0001499,2]
[392635081,1761766238452,-1339.89024181,0.00014999,2]
[392635083,1761766238464,-5710.08935412,0.00014999,2]
[392635094,1761766238558,-5156.0404423,0.00014999,2]
[392635096,1761766238569,-1599.22750367,0.00014999,2]
[392635098,1761766238581,-34209.2347011,0.00014999,2]
[392635100,1761766238591,-1487.1136093,0.00014999,2]
[392635103,1761766238601,-99963.19557869,0.00014999,2]
[392635205,1761766239609,-1591.75627959,0.000148,2]
[392635207,1761766239618,-3029.04070569,0.0001487,2]
[392635209,1761766239630,-388.95929431,0.0001487,2]
[392635211,1761766239640,-3741.39506065,0.00014999,2]
[392635213,1761766239652,-17056.27961504,0.00014999,2]
[392635215,1761766239663,-13412.1910142,0.00014999,2]
[392635218,1761766239674,-7407.44721765,0.00014999,2]
[392635222,1761766239686,-7012.87185584,0.00014999,2]
[392635225,1761766239697,-1008.93843287,0.00014999,2]
[392635232,1761766239730,-140841.74890354,0.00014999,2]
[392635302,1761766240988,-216.91940871,0.00014565,2]
[392635303,1761766240998,-67.00287451,0.000149,2]
[392635304,1761766241069,-119.89137295,0.000149,2]
[392635305,1761766241080,-668.14219489,0.000149,2]
[392635306,1761766241132,-331.85780511,0.000149,2]
[392635307,1761766241141,-3647.2177555,0.00014999,2]
[392635308,1761766241152,-6646.82381001,0.00014999,2]
[392635309,1761766241164,-10808.79943378,0.00014999,2]
[392635310,1761766241174,-4048.89999993,0.00014999,2]
[392635311,1761766242830,-874.07602498,0.00014541,2]
[392635312,1761766242840,-1591.75627954,0.00014811,2]
[392635313,1761766242850,-11940.0576246,0.00014999,2]
[392635314,1761766242859,-500.0,0.00014999,2]
[392635315,1761766242868,-6211.4237197,0.00014999,2]
[392635316,1761766242877,-151.0,0.00014999,2]
[392635317,1761766242886,-151.0,0.00014999,2]
[392635318,1761766242895,-151.0,0.00014999,2]
[392635319,1761766242906,-151.0,0.00014999,2]
[392635320,1761766242915,-151.0,0.00014999,2]
[392635321,1761766242924,-151.0,0.00014999,2]
[392635322,1761766242934,-155.924518,0.00014999,2]
[392635323,1761766242942,-151.0,0.00014999,2]
[392635324,1761766242952,-204.441923,0.00014999,2]
[392635325,1761766242961,-151.0,0.00014999,2]
[392635326,1761766242970,-151.0,0.00014999,2]
[392635327,1761766242982,-151.0,0.00014999,2]
[392635328,1761766242992,-151.0,0.00014999,2]
[392635329,1761766243002,-151.0,0.00014999,2]
[392635330,1761766243011,-151.0,0.00014999,2]
[392635331,1761766243020,-151.0,0.00014999,2]
[392635332,1761766243030,-154.079738,0.00014999,2]
[392635333,1761766243040,-154.496353,0.00014999,2]
[392635334,1761766243049,-219.185445,0.00014999,2]
[392635335,1761766243058,-151.0,0.00014999,2]
[392635336,1761766243068,-1827.0,0.00015,2]
[392635337,1761766243078,-93486.82494076,0.00015,2]
[392635338,1761766243089,-322200.38529946,0.00015,2]
[392635339,1761766243251,-96167.43468617,0.00015,2]
[392635340,1761766243266,-267446.93599999,0.00015,2]
[392635365,1761766245773,-563.07356218,0.00013988,2]
[392635367,1761766245782,-86.80643576,0.0001487,2]
[392635377,1761766246103,-837.2639908,0.0001487,2]
[392635390,1761766246216,-2567.92957344,0.0001487,2]
[392635392,1761766246225,-1648.25734403,0.00015,2]
[392636115,1761766507658,305.0,0.000175,3]
[392636116,1761766508103,305.0,0.000175,3]
[392636117,1761766508388,305.0,0.000175,3]
[392636118,1761766549197,699.35,0.00013699,2]
[392636242,1761766807793,259.0,0.000175,3]
[392636243,1761766808021,259.0,0.000175,3]
[392636244,1761766808309,259.0,0.000175,3]
[392636276,1761767069517,-1000.0,0.00013883,2]
[392636277,1761767077131,-300.0,0.00013928,2]
[392636278,1761767085285,-300.0,0.00013972,2]
[392636279,1761767085306,-332.15480148,0.00013972,2]
[392636280,1761767085326,-157.24,0.00013973,2]
[392636282,1761767107431,221.0,0.000175,3]
[392636283,1761767107687,2825.84993,7.945e-05,2]